Cogmind - Beta 12 @@@ ROGUE MODE // 2023.03.06 @ 21:20:35 Player: ChromeKnight Result: Destroyed by S-10 Pest with Light Assault Rifle Performance ------------- Evolutions (1) 500 Regions Visited (5) 1000 Robots Destroyed (11) 55 Value Destroyed (282) 282 Prototype IDs (1) 20 Alien Tech Used (0) 0 Bonus (-1037) -1037 TOTAL SCORE: 820 Bonus ------- Pacifist 200 Follower Combat Kills 14 Friendly Fire -1251 Cogmind --------- Core Integrity 0/400 Matter 268/300 Energy 100/100 System Corruption 0% Temperature Cool (0) Movement Core (50) Location -8/Mines Parts ------- > --- POWER (1) -------- (None) > --- PROPULSION (4) --- (None) > --- UTILITY (2) ------ (None) > --- WEAPON (2) ------- (None) > --- INVENTORY (5) ---- Medium Storage Unit Dynamic Insulation System Tractor Beam Small Laser Peak State ------------ > --- POWER ------------ Heavy Ion Engine > --- PROPULSION ------- Aluminum Leg Armored Wheel Armored Huge Wheel > --- UTILITY ---------- Improved Heat Sink Medium Armor Plating > --- WEAPON ----------- Advanced Assault Cannon Grenade Launcher > --- INVENTORY -------- Medium Storage Unit Dynamic Insulation System Tractor Beam Small Laser [Rating: 24] Favorites ----------- Power Heavy Ion Engine Engine Heavy Ion Engine Propulsion Aluminum Leg Leg Aluminum Leg Wheel Armored Wheel Flight Unit Flight Unit Utility Improved Heat Sink Device Improved Heat Sink Protection Medium Armor Plating Weapon Grenade Launcher Energy Gun Particle Gun Ballistic Cannon Advanced Assault Cannon Launcher Grenade Launcher Build | -11 -10 -9 -9 -9 -8 ------- Run | Jun Mat Mat Min Exi Min Slots Evolved 2 | . . 2 . . . Power . | . . . . . . Propulsion 2 | . . 2 . . . Utility . | . . . . . . Weapon . | . . . . . . Parts Attached 18 | . 4 3 10 1 . Power 2 | . . 1 1 . . Engine 2 | . . 1 1 . . Core . | . . . . . . Reactor . | . . . . . . Propulsion 7 | . 2 1 4 . . Treads . | . . . . . . Leg 2 | . . . 2 . . Wheel 2 | . . . 2 . . Hover . | . . . . . . Flight 3 | . 2 1 . . . Utility 2 | . . . 2 . . Device 1 | . . . 1 . . Storage . | . . . . . . Processor . | . . . . . . Hackware . | . . . . . . Protection 1 | . . . 1 . . Artifact . | . . . . . . Weapon 7 | . 2 1 3 1 . Energy Gun 2 | . 1 . 1 . . Energy Cannon . | . . . . . . Ballistic Gun . | . . . . . . Ballistic Cannon 2 | . . 1 1 . . Launcher 3 | . 1 . 1 1 . Special Weapon . | . . . . . . Impact Weapon . | . . . . . . Slashing Weapon . | . . . . . . Piercing Weapon . | . . . . . . Special Melee Weapon . | . . . . . . Unidentified Prototypes 1 | . . . 1 . . Parts Lost 11 | . . 2 1 8 . Power 1 | . . . . 1 . Propulsion 6 | . . 2 1 3 . Utility 2 | . . . . 2 . Weapon 2 | . . . . 2 . Highest Loss Streak 8 | . . 2 1 8 . To Critical Strikes 2 | . . . . 2 . Average Slot Usage (%) 69 | . 23 50 81 67 . Engine 8 | . . 6 10 10 . Leg 12 | . . . 16 10 . Wheel 9 | . . . 11 21 . Flight 7 | . 9 30 5 . . Device 7 | . . . 10 8 . Protection 7 | . . . 9 8 . Energy Gun 4 | . 2 2 6 . . Ballistic Cannon 5 | . . 8 5 9 . Launcher 5 | . 11 2 5 1 . Naked Turns 78 | . 8 . . 6 64 Heaviest Build 25 | . 5 7 22 25 . Greatest Support 40 | 3 8 12 40 40 3 Greatest Overweight (x) 1 | . . . 1 . . Average Overweight (x) . | . . . . . . Largest Inventory Capacity 5 | 5 5 5 5 5 5 Average Capacity 5 | 5 5 5 5 5 5 Most Carried 5 | . 3 5 5 5 4 Average Carried 3 | . . 2 4 4 4 Final Capacity 5 | 5 5 5 5 5 5 Final Carried 5 | . 2 5 5 4 4 Class Distribution -------------------- 100% | Mutant Dominant Class ---------------- Mutant | -10/Materials Mutant | -9/Materials Mutant | -9/Mines Mutant | -9/Exiles Mutant | -8/Mines Resources | -11 -10 -9 -9 -9 -8 ----------- Run | Jun Mat Mat Min Exi Min Matter Collected 520 | 196 . 76 246 2 . Remotely . | . . . . . . Salvage Created 328 | . . 77 251 . . Parts 18 | . . 6 12 . . Haulers Intercepted . | . . . . . . Recyclers Shooed . | . . . . . . Parts Field Recycled . | . . . . . . Retrieved Matter . | . . . . . . Parts Self-Destructed . | . . . . . . Prevented . | . . . . . . Kills | -11 -10 -9 -9 -9 -8 ------- Run | Jun Mat Mat Min Exi Min Combat Hostiles Destroyed 9 | . . 2 7 . . Guns 3 | . . . 3 . . Cannons 4 | . . 2 2 . . AOE 2 | . . . 2 . . Classes Destroyed 3 | . . 3 . . . Watcher 1 | . . 1 . . . Swarmer 4 | . . 1 3 . . Grunt 5 | . . 1 4 . . Best Kill Streak 5 | . . 2 5 . . Combat Bots Only 5 | . . 2 5 . . Max Kills in Single Turn 1 | . . 1 1 . . Gunslinging . | . . . . . . Exploded 1 | . . . 1 . . Melee . | . . . . . . Uniques/NPCs Destroyed 1 | . . . 1 . . YI-UF0 (-9/Mines) Combat | -11 -10 -9 -9 -9 -8 -------- Run | Jun Mat Mat Min Exi Min Damage Taken 1469 | . . 144 245 988 92 Core 405 | . . 34 42 237 92 Absorbed by Shields . | . . . . . . Core Remaining (%) 100 | 100 100 . . . . Volleys Fired 65 | . . 12 42 11 . Largest 2 | . . 1 2 1 . Hottest 95 | . . 39 95 48 . Shots Fired 72 | . . 12 49 11 . Gun 32 | . . . 32 . . Cannon 33 | . . 12 10 11 . Launcher 7 | . . . 7 . . Special . | . . . . . . Kinetic 33 | . . 12 10 11 . Thermal 32 | . . . 32 . . Explosive 7 | . . . 7 . . Electromagnetic . | . . . . . . Robot Hit Streak 7 | . . 2 5 7 . Robot Miss Streak 3 | . . 2 3 3 . Penetration Max . | . . . . . . Secondary Targets . | . . . . . . Shots Hit Robots 41 | . . 5 28 8 . Core Hits 21 | . . 3 15 3 . Critical Kills . | . . . . . . Critical Parts Destroyed . | . . . . . . Critical Strikes 1 | . . . 1 . . Blast 1 | . . . 1 . . Melee Attacks . | . . . . . . Impact . | . . . . . . Slashing . | . . . . . . Piercing . | . . . . . . Sneak Attacks . | . . . . . . Combat Hostiles . | . . . . . . Follow-up Attacks . | . . . . . . Damage Inflicted 925 | . . 113 577 223 12 Guns 298 | . . . 298 . . Cannons 477 | . . 113 141 223 . Explosions 138 | . . . 138 . . Melee . | . . . . . . Ramming 12 | . . . . . 12 Kinetic 477 | . . 113 141 223 . Thermal 298 | . . . 298 . . Explosive 138 | . . . 138 . . Electromagnetic . | . . . . . . Impact . | . . . . . . Slashing . | . . . . . . Piercing . | . . . . . . Highest Corruption . | . . . . . . Average Corruption . | . . . . . . Corruption Purged . | . . . . . . Corruption Blocked . | . . . . . . Overload Shots . | . . . . . . Overflow Damage 28 | . . . 28 . . Projectiles . | . . . . . . Explosions 28 | . . . 28 . . Melee . | . . . . . . Knockbacks 4 | . . 2 . 2 . Impact . | . . . . . . Kinetic 4 | . . 2 . 2 . Secondary . | . . . . . . Self-Inflicted Damage 41 | . . . 35 . 6 Shots 3 | . . . 3 . . Rammed 1 | . . . . . 1 Targets Rammed 1 | . . . . . 1 Kicked . | . . . . . . Crushed . | . . . . . . Highest Temperature 19 | . . 9 19 18 . Average Temperature 7 | . . 6 6 10 . Received Heat Transfer 168 | . . 48 120 . . Siege Activations . | . . . . . . Robots Corrupted . | . . . . . . Combat Hostiles . | . . . . . . Parts Fried . | . . . . . . Impact Corruptions . | . . . . . . Robots Melted . | . . . . . . Combat Hostiles . | . . . . . . Parts Melted . | . . . . . . Heat Transferred 703 | . . . 703 . . Parts Sabotaged . | . . . . . . Parts Stolen . | . . . . . . Parts Stripped . | . . . . . . Power Chain Reactions . | . . . . . . Missiles Intercepted . | . . . . . . Alert | -11 -10 -9 -9 -9 -8 ------- Run | Jun Mat Mat Min Exi Min Peak Influence 301 | . 7 189 301 . . Initial 69 | . . 2 69 . . Average 146 | . 6 80 177 . . Maximum Alert Level 1 | . . . 1 . . Low Security (%) 67 | 100 100 100 57 . 100 Level 1 32 | . . . 42 . . Level 2 . | . . . . . . Level 3 . | . . . . . . Level 4 . | . . . . . . Level 5 . | . . . . . . High Security . | . . . . . . Max Security . | . . . . . . Squads Dispatched 2 | . . 2 . . . Investigation . | . . . . . . Extermination . | . . . . . . Reinforcement 2 | . . 2 . . . Assault . | . . . . . . Garrison . | . . . . . . Intercept . | . . . . . . Searches Triggered . | . . . . . . Construction Impeded . | . . . . . . Haulers Reinforced . | . . . . . . Active Scanning Responses . | . . . . . . Cargo Convoy Interrupts . | . . . . . . Stealth | -11 -10 -9 -9 -9 -8 --------- Run | Jun Mat Mat Min Exi Min Distress Signals 3 | . . 3 . . . Communications Jammed . | . . . . . . Distress Signals . | . . . . . . Times Spotted 42 | . . 19 12 7 4 Peak Tracking Total 14 | . . 14 5 9 5 Tactical Retreats 4 | . . 2 2 . . Traps | -11 -10 -9 -9 -9 -8 ------- Run | Jun Mat Mat Min Exi Min Traps Triggered . | . . . . . . Indirectly . | . . . . . . Trap Hack Attempts . | . . . . . . Triggered . | . . . . . . Disarmed . | . . . . . . Reprogrammed . | . . . . . . Reused . | . . . . . . Traps Extracted . | . . . . . . Installed . | . . . . . . Triggered . | . . . . . . Machines | -11 -10 -9 -9 -9 -8 ---------- Run | Jun Mat Mat Min Exi Min Machines Disabled 3 | . . . 3 . . Max in Single Turn 2 | . . . 2 . . Machines Repaired . | . . . . . . Machines Sabotaged . | . . . . . . Overloaded Fab Kills . | . . . . . . Hacking | -11 -10 -9 -9 -9 -8 --------- Run | Jun Mat Mat Min Exi Min Machines Accessed 3 | . 1 1 1 . . Terminals 2 | . 1 1 . . . Fabricators . | . . . . . . Repair Stations . | . . . . . . Recycling Units . | . . . . . . Scanalyzers . | . . . . . . Garrison Access . | . . . . . . Total Hacks 5 | . 3 1 1 . . Successful 2 | . 1 . 1 . . Failed 3 | . 2 1 . . . Catastrophic 1 | . . 1 . . . Database Lockouts . | . . . . . . Manual 4 | . 3 1 . . . Terminals 4 | . 3 1 . . . Fabricators . | . . . . . . Repair Stations . | . . . . . . Recycling Units . | . . . . . . Scanalyzers . | . . . . . . Garrison Access . | . . . . . . Terminal Hacks 2 | . 1 . 1 . . Open Door 1 | . . . 1 . . Disarm Traps 1 | . 1 . . . . Fabricator Hacks . | . . . . . . Repair Station Hacks . | . . . . . . Recycling Unit Hacks . | . . . . . . Scanalyzer . | . . . . . . Garrison Access Hacks . | . . . . . . Unauthorized Hacks . | . . . . . . Terminals . | . . . . . . Fabricators . | . . . . . . Repair Stations . | . . . . . . Recycling Units . | . . . . . . Scanalyzers . | . . . . . . Garrison Access . | . . . . . . Data Cores Recovered . | . . . . . . Used . | . . . . . . Hacking Detections 2 | . 1 1 . . . Full Trace Events . | . . . . . . Feedback Events . | . . . . . . Feedback Blocked . | . . . . . . Robot Schematics Acquired . | . . . . . . Robots Built . | . . . . . . Authchips . | . . . . . . Time . | . . . . . . Total Robot Build Rating . | . . . . . . Part Schematics Acquired . | . . . . . . Parts Built . | . . . . . . Authchips . | . . . . . . Time . | . . . . . . Total Part Build Rating . | . . . . . . Parts Repaired . | . . . . . . Time . | . . . . . . Parts Recycled . | . . . . . . Recycled Matter . | . . . . . . Retrieved Matter . | . . . . . . Retrieved Components . | . . . . . . Parts Scanalyzed . | . . . . . . Part Schematics Acquired . | . . . . . . Parts Damaged . | . . . . . . Bothacking | -11 -10 -9 -9 -9 -8 ------------ Run | Jun Mat Mat Min Exi Min Used RIF Installer . | . . . . . . Robots Hacked . | . . . . . . Non-combat . | . . . . . . Combat . | . . . . . . Robot Hacks Applied . | . . . . . . Relay Couplers Released . | . . . . . . Fabnet Peak Effective % . | . . . . . . Robots Rewired . | . . . . . . Allies Hacked . | . . . . . . Hacks Repelled . | . . . . . . Allies | -11 -10 -9 -9 -9 -8 -------- Run | Jun Mat Mat Min Exi Min Total Allies 3 | . . . 3 . . Largest Group 3 | . . . 3 3 . Highest-Rated Group 40 | . . . 40 40 . Highest-Rated Ally 16 | . . . 16 16 . Total Orders 1 | . . . . 1 . STAY 1 | . . . . 1 . Ally Attacks 9 | . . . 3 6 . Total Damage 36 | . . . 30 6 . Kills 2 | . . . 2 . . Allies Corrupted . | . . . . . . Allies Melted . | . . . . . . Intel | -11 -10 -9 -9 -9 -8 ------- Run | Jun Mat Mat Min Exi Min Robot Analysis Total . | . . . . . . Derelict Logs Recovered 1 | . . . 1 . . Drone Launches . | . . . . . . Drone Recoveries . | . . . . . . Exploration | -11 -10 -9 -9 -9 -8 ------------- Run | Jun Mat Mat Min Exi Min Turns Passed 1181 | 12 61 101 826 117 64 Spaces Moved 1075 | 25 116 185 629 90 30 Core 137 | 25 71 . . 11 30 Treads . | . . . . . . Legs 120 | . . . 120 . . Wheels 533 | . . . 454 79 . Hover . | . . . . . . Flight 285 | . 45 185 55 . . Fastest Speed 34 | 50 37 34 40 50 50 Average Speed 84 | 50 44 35 108 89 50 Slowest Speed 190 | 50 50 40 190 100 50 Overloaded Moves . | . . . . . . Propulsion Burnouts . | . . . . . . Robots Hopped 3 | . . 3 . . . Cave-ins Triggered . | . . . . . . Exploration Rate (%) 27 | 3 26 25 88 13 9 Regions Visited 5 Branch Regions 3 Pre-discovered Areas . | . . . . . . Known Exits Taken . | . . . . . . Unknown Exits Taken 5 | 1 1 1 1 1 . Scrap Searched 2 | . . . 1 . 1 Spaces Dug . | . . . . . . Terrain Destroyed 56 | . . . 54 2 . Melee . | . . . . . . Projectile 2 | . . . . 2 . AOE 54 | . . . 54 . . Terrain Rammed . | . . . . . . Walls Destroyed . | . . . . . . Machines Disabled . | . . . . . . Actions | -11 -10 -9 -9 -9 -8 --------- Run | Jun Mat Mat Min Exi Min Total 1267 | 24 122 204 724 114 79 Wait 99 | . . 1 37 13 48 Move 1064 | 24 115 178 628 89 30 Hop 3 | . . 3 . . . Pick Up 10 | . 3 4 3 . . Fast Attach 12 | . 3 2 7 . . Attach 6 | . 1 1 3 1 . Detach . | . . . . . . Swap . | . . . . . . Drop 7 | . . 3 4 . . Fire 65 | . . 12 42 11 . Melee . | . . . . . . Ram 1 | . . . . . 1 Kick . | . . . . . . Crush . | . . . . . . Escape Stasis . | . . . . . . Rewire . | . . . . . . Trap . | . . . . . . Miscellaneous . | . . . . . . Route ------- -11/Junkyard -10/Materials -9/Materials -9/Mines -9/Exiles -8/Mines (discovered 1 exit: [*Mat]) History --------- Turn | Location | Event 4 | -11/Junkyard | Discovered new exit (range 15) 13 | -11/Junkyard | Entered Materials 71 | -10/Materials | Discovered new exit (range 6) 74 | -10/Materials | Entered another Materials area 74 | -9/Materials | Evolved 2 slots: Propulsion x2 163 | -9/Materials | Discovered new exit (range 9) 175 | -9/Materials | Entered Mines 310 | -9/Mines | Build established: Mutant 471 | -9/Mines | YI-UF0 nonchalantly dropped a Grenade Launcher on the ground 531 | -9/Mines | Destroyed YI-UF0 706 | -9/Mines | Met a Derelict who couldn't figure out how to use a Trap Extractor 788 | -9/Mines | Learned Materials garrison access intel 800 | -9/Mines | Assisted by bots powering up and referring to "LRC-V3" 992 | -9/Mines | Deemed a non-threat by the Exiles lab entrance 992 | -9/Mines | Discovered new exit (range 5) 1001 | -9/Mines | Entered Exiles 1001 | -9/Exiles | Accompanied by 3 allies 1023 | -9/Exiles | Met 8R-AWN 1076 | -9/Exiles | Attacked by the Exiles 1106 | -9/Exiles | Core integrity fell below 50% 1112 | -9/Exiles | Discovered new exit (range 14) 1118 | -9/Exiles | Entered Mines 1143 | -8/Mines | Lost 8 parts (1p3n2u2w) 1174 | -8/Mines | Discovered new exit (range 14) 1176 | -8/Mines | Core integrity fell below 20% 1182 | -8/Mines | Destroyed by S-10 Pest with Light Assault Rifle Last Messages --------------- 01109_ Arm. Wheel destroyed. 01110_ Penetrated by HV Slug. 01110_ HV Slug penetrates Wall. 01110_ Penetrated by HV Slug. 01110_ HV Slug penetrates Wall. 01112_ EXIT=FOUND 01112_ Penetrated by HV Slug. 01112_ HV Slug penetrates Wall. 01112_ Penetrated by HV Slug. 01112_ Critical hit (Destroy). 01112_ Arm. Huge Wheel destroyed. 01112_ HV Slug penetrates Wall. A strange signal echoes through the mines. LOCATION=UNKNOWN GOAL=ESCAPE 01174_ EXIT=FOUND 01176_ Searching scrap... 01176_ Found Hcp. Storage Unit. 01176_ Found 27 Matter. 01182_ Slammed into S-10 Pest. Map ----- +----------------------------------------------------+ | ???????????????????????????????????????? | | ???????????????????????????????????????? | | ???????????????????????????????????????? | | ???????????????????????????????????????? | | ???????????????????????????????????????? | | ???????????????????????????????????????? | | ???????????????????????????????????????? | | ???????????????????????????????????????? | | ???????????????????????????????????????? | | ???????????????????????????????????????? | | ?????????????????????????#?????????????? | | ????????????????????????? ?????????????? | | ????????????????????????? ?????????????? | | ????????????????????????? ?????????????? | | ????????????????????????? ?????????????? | | ????????????????????????? ?????????????? | | ????????????????????????? ?????????????? | | ????????????????#???????# #????????????? | | ????????????????? ????### ###??????????? | | ?????????????????? ???# k #??????????? | | ??????????????????? ### ???????????? | | ???????????????????? < ???????????? | | ????????????????????? ????????????? | | ??????????????????????# ????????????? | | ???????????????????????# s#????????????? | | ???????????????????????#s@#????????????? | | ???????????????????????#ss#????????????? | | ???????????????????????# #????????????? | | ???????????????????????# #????????????? | | ???????????????????????# #????????????? | | ???????????????????????# #????????????? | | ???????????????????????# #????????????? | | ???????????????????????# #????????????? | | ???????????????????????# #######??????? | | ???????????????????????# #??????? | | ???????????????????????# ##### #??????? | | ???????????????????????# #???# #?#####? | | ???????????????????????# %#???# #?# #? | | ???????????????????????# ! ??# ### #? | | ???????????????????????#### #?# #? | | ??????????????????????????? #?#### #? | | ???????????????????????????? ????# #? | | ????????????????????????????? ???# #? | | ??????????????????????????????#??# #? | | ?????????????????????????????????## ##? | | ??????????????????????????????????# #?? | | ?????????????????????????????????? #?? | | ?????????????????????????????????? #?? | | ?????????????????????????????????? #?? | | ?????????????????????????????????? ##?? | +----------------------------------------------------+ Best States ------------- Heat Dissipation 42 Energy Generation 14 Energy Capacity 280 Matter Stores 300 Matter Capacity 300 Sight Range 16 Terrain Scan Density 10 Armor Coverage 225 Evasion (%) 63 Item Schematics ----------------- None Robot Schematics ------------------ None Fabricated ------------ Nothing Alien Tech Used ----------------- None Achievements -------------- None Challenges ------------ None Game ------ Seed OpticalHeavyAutocannon Manual? 0 Play Time 00:08:36 Cumulative 392.1 hours Start 2023.03.06 @ 21:12:11 End 2023.03.06 @ 21:20:35 Sessions 1 Manual Loads 0 Difficulty Rogue Special Mode None Game No. 702 Rogue 547 Adventurer 148 Explorer 7 Win Type - Total 16 Types 14/0/1/1/0/0/0/0/0 Lore% 77 Gallery% 87 Achievement% 72 Wizard Run 0 Options --------- ASCII 0 Keyboard 0 Movement Numpad Keybinds 0 Fullscreen 2 Font 18/SmallcapsGlow Map View 76x50 Tactical HUD 1 Map Filters NONE Filters NONE Steam 1 RUN: 7593da2f-ee7e-454a-b3ab-81a4c9b1cdbb